bitfinex/quotes_ETHUSD_20240928
["timestamp","ask_amount","ask_price","bid_price","bid_amount"]
[1727563061701,11.27645464,2680.1,2680.0,0.05]
[1727563061996,11.27645464,2680.1,2680.0,0.11373212]
[1727563063160,11.27645464,2680.1,2680.0,0.06373212]
[1727563063368,7.54524464,2680.1,2680.0,0.05]
[1727563063568,7.54524464,2680.1,2680.0,0.11373212]
[1727563063569,11.27644464,2680.1,2680.0,0.11373212]
[1727563064088,11.27644464,2680.1,2680.0,0.06373212]
[1727563064498,11.27644464,2680.1,2679.8,0.05]
[1727563064701,11.27644464,2680.1,2680.0,0.06373212]
[1727563064872,11.27644464,2680.1,2679.8,0.05]
[1727563065063,11.27644464,2680.1,2680.0,0.11373212]
[1727563065266,11.27644464,2680.1,2680.0,0.05]
[1727563065471,11.27644464,2680.1,2680.0,0.11373212]
[1727563065667,11.27644464,2680.1,2680.0,0.05]
[1727563066209,11.27644464,2680.1,2680.0,0.11424772]
[1727563066507,11.27644464,2680.1,2680.0,0.05]
[1727563066978,11.27644464,2680.1,2680.0,0.11423185]
[1727563067919,5.98,2680.1,2680.0,0.11423185]
[1727563068209,5.98,2680.1,2680.0,0.05]
[1727563068679,5.98,2680.1,2680.0,0.11424772]
[1727563068885,5.98,2680.1,2680.0,0.05]
[1727563069099,5.98,2680.1,2680.0,0.11424772]
[1727563069301,5.98,2680.1,2680.0,0.05]
[1727563069517,5.98,2680.1,2680.0,0.11424772]
[1727563069729,5.98,2680.1,2680.0,0.05]
[1727563070320,5.98,2680.1,2680.0,0.11424772]
[1727563070488,5.98,2680.1,2680.0,0.05]
[1727563070688,5.98,2680.1,2680.0,0.11424772]
[1727563070911,5.98,2680.1,2680.0,0.05]
[1727563071088,5.98,2680.1,2680.0,0.11424772]
[1727563071288,5.98,2680.1,2680.0,0.05]
[1727563071528,5.98,2680.1,2680.0,0.11424772]
[1727563071688,5.98,2680.1,2680.0,0.05]
[1727563072024,5.98,2680.1,2680.0,0.11473948]
[1727563072198,5.98,2680.1,2680.0,0.94413948]
[1727563080737,5.98,2680.1,2680.0,9.70829907]
[1727563081032,3.81680805,2680.1,2680.0,10.25829907]
[1727563082001,3.81680805,2680.1,2680.0,11.27528944]
[1727563083336,3.81680805,2680.1,2680.0,10.25829907]
[1727563083547,3.81680805,2680.1,2680.0,11.27551734]
[1727563084639,3.81680805,2680.1,2680.0,12.8013864]
[1727563084844,3.81680805,2680.1,2680.0,12.80137492]
[1727563085374,3.81680805,2680.1,2680.0,11.27551734]
[1727563086336,3.81680805,2680.1,2680.0,12.8016759]
[1727563086542,1.64680805,2680.1,2680.0,12.80193104]
[1727563087149,1.64680805,2680.1,2680.0,11.27575186]
[1727563088034,1.64680805,2680.1,2680.0,12.80206448]
[1727563088456,1.64680805,2680.1,2680.0,10.72575186]
[1727563088659,1.64680805,2680.1,2680.0,9.16050722]
[1727563088862,1.64680805,2680.1,2680.0,5.14305443]
[1727563089275,1.64680805,2680.1,2680.0,3.84607948]
[1727563091274,1.64680805,2680.1,2680.0,0.11473948]
[1727563091444,1.64680805,2680.1,2680.0,3.84607948]
[1727563092749,0.8108,2680.4,2679.8,4.48211]
[1727563092952,0.8108,2680.4,2679.9,0.05333716]
[1727563093182,0.61068046,2680.3,2679.9,0.05333716]
[1727563093957,4.34160046,2680.3,2679.9,0.05333716]
[1727563094157,5.9068451,2680.3,2679.9,0.05333716]
[1727563100685,1.56524464,2680.1,2679.9,0.05333716]
[1727563102001,1.56524464,2680.1,2679.9,3.78474716]
[1727563102204,1.56524464,2680.3,2679.9,3.78474716]
[1727563102367,2.1759271,2680.3,2679.9,3.78474716]
[1727563103507,0.8108,2680.4,2679.9,0.05333716]
[1727563103674,1.56524464,2680.3,2679.9,3.78478716]
[1727563103873,1.56524464,2680.3,2679.9,3.73145]
[1727563104069,1.56524464,2680.3,2680.0,0.05211394]
[1727563104378,2.16788606,2680.0,2679.9,3.73145]
[1727563106099,2.16788606,2680.0,2679.9,3.78182681]
[1727563110284,1.56524464,2680.3,2679.9,0.05037681]
[1727563110518,2.1759341,2680.3,2679.9,3.78182681]
[1727563111892,0.8308,2680.0,2679.9,0.05037681]
[1727563112222,0.8308,2680.0,2679.6,3.73181]
[1727563112425,1.56524464,2679.9,2679.7,0.04932422]
[1727563113033,0.39042995,2680.3,2680.1,0.8058]
[1727563113331,7.27,2680.9,2680.2,3.78049531]
[1727563113496,1.183086,2680.9,2680.4,3.73069]
[1727563113686,0.3903645,2680.9,2680.5,3.73063]
[1727563114109,0.3903645,2680.9,2680.6,0.04939563]
[1727563114520,1.95560914,2680.9,2680.4,3.73077]
[1727563114720,0.49511645,2680.8,2680.7,0.04939563]
[1727563114885,2.06036109,2680.8,2680.3,3.7309]
[1727563115087,2.06036109,2680.8,2680.7,0.04731939]
[1727563115385,2.06036109,2680.8,2680.7,0.04734319]
[1727563116230,0.49511645,2680.8,2680.7,0.04734319]
[1727563116412,0.49511645,2680.8,2680.4,3.73075]
[1727563116925,0.49511645,2680.8,2680.5,0.04735905]
[1727563117850,0.3903645,2680.9,2680.5,0.04735905]
[1727563118028,0.01264095,2680.5,2680.4,3.73078]
[1727563118197,0.01264095,2680.5,2680.4,5.35735256]
[1727563118400,0.01264095,2680.5,2680.4,5.282749]
[1727563118622,0.01264095,2680.5,2680.4,10.82808488]
[1727563119923,0.01264095,2680.5,2680.4,10.82793633]
[1727563120098,0.01264095,2680.5,2680.4,9.30088335]
[1727563120301,0.01264095,2680.5,2680.4,9.3007026]
[1727563122149,0.01264095,2680.5,2680.4,10.82746611]
[1727563122445,8.1008,2681.3,2680.9,3.72997]
[1727563122655,2.3922132,2681.3,2680.9,3.72997]
[1727563123506,0.8308,2681.3,2680.9,3.72997]
[1727563125746,0.39035388,2681.4,2681.0,3.76905256]
[1727563128644,4.11975388,2681.4,2681.0,3.76905256]
[1727563129034,4.11975388,2681.4,2681.0,0.03918256]
[1727563133235,7.66278,2682.6,2681.0,0.03918256]
[1727563133236,3.72794,2682.5,2681.3,4.51053]
[1727563133438,3.72648,2683.5,2681.3,4.51053]
[1727563133439,0.7744,2683.2,2681.9,3.0]
[1727563133724,4.5013,2683.2,2682.5,3.72775]
[1727563133951,4.16804813,2682.9,2682.1,3.72841]
[1727563134255,0.7744,2682.8,2682.6,0.03863542]
[1727563134461,0.78954581,2682.7,2682.1,3.72829]
[1727563135055,0.78954581,2682.7,2682.1,7.45661]
[1727563135263,0.78954581,2682.7,2682.1,3.72829]
[1727563135423,0.78954581,2682.7,2682.1,7.45661]
[1727563135627,0.78954581,2682.7,2682.2,3.72826]
[1727563136022,0.78954581,2682.7,2682.3,0.03863542]
[1727563136224,4.16804813,2682.6,2682.3,0.03863542]
[1727563136424,0.7744,2682.5,2682.3,0.03863542]
[1727563136627,0.7744,2682.5,2682.0,3.72849]
[1727563137059,0.7744,2682.5,2682.1,0.03863542]
[1727563138163,0.7744,2682.5,2682.2,3.72827]
[1727563138676,0.7744,2682.5,2682.3,0.03863542]
[1727563139027,0.7744,2682.5,2682.2,3.72823]
[1727563139367,0.7744,2682.5,2682.3,0.03863542]
[1727563139739,0.7744,2682.5,2682.2,3.72823]
[1727563140031,0.7744,2682.5,2682.4,0.03863542]
[1727563140231,0.7744,2682.5,2682.4,3.76663542]
[1727563140426,0.7909,2682.9,2682.4,3.76663542]
[1727563140669,1.57534667,2682.9,2682.4,3.76663542]
[1727563141576,3.72719,2683.0,2682.6,3.72761]
[1727563141577,0.7909,2683.0,2682.6,3.72761]
[1727563142363,0.7909,2683.0,2682.7,0.03863542]
[1727563142765,19.47,2682.9,2682.7,0.03863542]
[1727563142971,2.02609,2682.8,2682.7,0.03863542]
[1727563143541,21.49609,2682.8,2682.7,0.03863542]
[1727563143857,19.47,2682.8,2682.7,3.76621542]
[1727563145547,19.47,2682.9,2682.8,3.72744]
[1727563145955,19.47,2682.9,2682.8,3.76483935]
[1727563147741,19.47,2682.9,2682.8,0.03739935]
[1727563147955,21.417,2682.9,2682.7,3.72758]
[1727563148268,21.417,2682.9,2682.8,0.03739935]
[1727563148652,21.417,2682.9,2682.7,3.7275]
[1727563148852,1.947,2682.9,2682.8,0.03598115]
[1727563149081,3.72689,2683.2,2682.8,0.03598115]
[1727563149386,3.72684,2683.3,2682.9,0.03598115]
[1727563149747,3.72684,2683.3,2682.7,7.45498]
[1727563149968,0.451774,2683.2,2683.0,0.03610784]
[1727563150167,0.451774,2683.2,2682.8,3.72744]
[1727563150367,0.4178614,2683.1,2682.8,3.72744]
[1727563150978,0.4178614,2683.1,2682.9,0.03610784]
[1727563156694,0.4178614,2683.1,2682.9,3.76340784]
[1727563156878,4.51752,2683.4,2682.9,3.76340784]
[1727563157278,0.7909,2683.4,2683.0,3.72709]
[1727563157474,0.451745,2683.3,2682.9,3.76340784]
[1727563157715,0.451745,2683.3,2683.0,0.03610784]
[1727563160819,0.451745,2683.3,2683.1,3.72695]
[1727563160990,0.7909,2683.4,2683.1,3.72695]
[1727563161195,0.7909,2683.4,2683.2,0.0347741]
[1727563161630,4.93305786,2683.7,2683.2,0.0347741]
[1727563162218,3.7264,2683.6,2683.2,0.0347741]
[1727563162387,0.86594579,2683.5,2683.2,0.0347741]
[1727563162803,4.59249579,2683.5,2683.2,0.0347741]
[1727563163118,0.86594579,2683.5,2683.0,3.72715]
[1727563163318,0.86594579,2683.5,2683.3,0.03362656]
[1727563163479,3.7265,2683.5,2683.3,0.03362656]
[1727563163683,3.7264,2683.6,2682.5,7.12147813]
[1727563163684,3.7256,2684.2,2683.7,3.72607]
[1727563163932,0.8167,2684.4,2683.8,1.168807]
[1727563164222,0.8167,2684.4,2684.0,3.72577]
[1727563164919,0.8167,2684.4,2684.1,0.03345237]
[1727563165123,0.8167,2684.4,2683.9,7.45165]
[1727563165503,0.8167,2684.4,2683.9,3.72582]
[1727563165699,0.8167,2684.4,2683.9,7.45165]
[1727563165903,0.8167,2684.4,2684.0,0.03345237]
[1727563166098,0.8167,2684.4,2684.0,3.75923237]
[1727563166431,0.8167,2684.4,2684.0,0.03345237]
[1727563166655,0.8167,2684.4,2684.0,3.75920237]
[1727563166798,0.8167,2684.4,2684.0,0.03345237]
[1727563167001,0.8167,2684.4,2684.0,3.75922237]
[1727563168027,0.8167,2684.4,2684.0,0.03345237]
[1727563168228,5.368708,2684.4,2684.0,0.03345237]
[1727563168425,3.72552,2684.2,2683.7,3.72612]
[1727563168835,7.45097,2684.3,2683.7,3.72612]
[1727563169036,0.9094348,2684.2,2683.7,3.72612]
[1727563169242,0.9094348,2684.2,2683.5,4.5226]
[1727563169538,4.6349448,2684.2,2683.5,4.52256]
[1727563169747,4.6349448,2684.2,2683.6,3.72632]
[1727563169919,0.83604248,2684.1,2683.6,3.72632]
[1727563171486,4.56168248,2684.1,2683.6,3.72632]
[1727563171674,3.72564,2684.1,2683.6,3.72632]
[1727563172768,0.8167,2684.0,2683.3,3.7267]
[1727563172977,4.18023,2683.9,2683.4,3.72657]
[1727563173164,4.18023,2683.9,2683.3,3.7267]
[1727563173376,4.18023,2683.9,2683.4,3.72657]
[1727563173541,4.18023,2683.9,2683.3,3.7267]
[1727563173866,4.18023,2683.9,2683.3,7.45338]
[1727563174060,4.18023,2683.9,2683.3,3.72668]
[1727563174371,4.18023,2683.9,2683.4,3.7266]
[1727563175997,4.18023,2683.9,2683.2,4.52308]
[1727563175998,0.8167,2684.0,2683.5,3.72646]
[1727563176141,0.8167,2684.0,2683.6,3.72631]
[1727563179399,0.8167,2684.0,2683.5,3.72636]
[1727563179899,0.8167,2684.0,2683.6,3.72633]
[1727563180064,0.8167,2684.0,2683.5,7.45276]
[1727563180265,0.8167,2684.0,2683.5,3.72636]
[1727563180986,4.54256,2684.0,2683.5,3.72636]
[1727563181180,3.72592,2683.9,2683.3,3.72663]
[1727563182294,3.72607,2683.8,2683.3,3.72663]
[1727563185299,7.4522,2683.8,2683.3,3.72663]
[1727563185499,3.72607,2683.8,2683.3,3.72663]
[1727563186227,7.45225,2683.8,2683.3,3.72663]
[1727563186434,3.7262,2683.7,2683.2,3.0]
[1727563186827,3.72655,2683.5,2683.0,0.7662]
[1727563187029,3.72659,2683.5,2683.0,0.7662]
[1727563187995,3.72659,2683.5,2683.0,4.49335]
[1727563189006,3.72659,2683.5,2683.0,0.7662]
[1727563189201,3.72659,2683.5,2683.0,4.49336]
[1727563192729,4.52859,2683.5,2683.0,4.49336]
[1727563193847,4.52859,2683.5,2683.0,3.72716]
[1727563201001,1.56279102,2683.9,2683.4,3.72661]
[1727563201002,0.8237,2683.9,2683.4,3.72661]
[1727563201648,3.72606,2683.8,2683.3,2.34199102]
[1727563201886,0.8237,2683.9,2683.4,7.4532]
[1727563202093,0.8237,2683.9,2683.4,7.4531]
[1727563202271,0.8237,2683.9,2683.5,3.72647]
[1727563202451,3.72586,2684.0,2683.5,3.72647]
[1727563203262,0.8237,2684.1,2683.4,3.7265]
[1727563203457,0.8237,2684.1,2683.6,3.72631]
[1727563203458,4.54939,2684.1,2683.6,3.72631]
[1727563203686,3.72588,2684.0,2683.4,7.45304]
[1727563204184,3.72588,2684.0,2683.4,3.7265]
[1727563204415,3.72588,2684.0,2683.5,3.72647]
[1727563204907,4.54939,2684.1,2683.5,3.72647]
[1727563205080,3.72587,2684.0,2683.5,3.72647]
[1727563205604,3.7258,2684.0,2683.5,3.72647]
[1727563205797,4.54939,2684.1,2683.4,4.72942301]
[1727563205968,3.72543,2684.3,2683.8,3.72597]
[1727563206175,3.72543,2684.3,2683.9,3.7259]
[1727563206872,0.8237,2684.4,2683.9,3.7259]
[1727563207094,4.54896,2684.4,2683.9,3.7259]
[1727563207303,0.8237,2684.4,2683.8,0.7792]
[1727563207500,3.72565,2684.1,2683.6,6.7263]
[1727563207697,7.45095,2684.3,2683.6,6.7263]
[1727563207871,3.72547,2684.3,2683.7,3.72616]
[1727563208075,3.72552,2684.2,2683.7,3.72616]
[1727563208393,3.72545,2684.3,2683.7,3.72616]
[1727563209018,3.72545,2684.3,2683.7,7.45227]
[1727563209169,3.72545,2684.3,2683.7,3.72611]
[1727563209369,3.72545,2684.3,2683.8,3.72605]
[1727563209617,3.72545,2684.3,2683.7,3.72611]
[1727563210403,3.72545,2684.3,2683.7,7.45223]
[1727563210610,3.72545,2684.3,2683.7,3.72611]
[1727563210767,7.45092,2684.3,2683.7,3.72611]
[1727563210967,7.45089,2684.3,2683.7,5.29324997]
[1727563211169,3.72544,2684.3,2683.7,5.29324997]
[1727563211373,3.72544,2684.3,2683.7,9.01935997]
[1727563211571,7.45092,2684.3,2683.7,5.21873478]
[1727563211810,3.72544,2684.3,2683.7,9.01934996]
[1727563212014,3.72544,2684.3,2683.7,8.94483478]
[1727563212187,3.72544,2684.3,2683.8,3.72605]
[1727563212811,3.72544,2684.3,2683.7,5.21872478]
[1727563213020,3.72544,2684.3,2683.8,3.72605]
[1727563213318,3.72544,2684.3,2683.7,8.94483478]
[1727563213480,3.72583,2684.0,2683.4,0.77479878]
[1727563213682,3.72614,2683.8,2683.3,4.49075]
[1727563214612,0.7649,2683.7,2683.3,3.72665]
[1727563216005,0.7649,2683.7,2683.3,7.45332]
[1727563216205,0.7649,2683.9,2683.5,3.72647]
[1727563216996,0.7649,2683.9,2683.5,3.72639]
[1727563217321,0.7649,2683.9,2683.5,7.45279]
[1727563217483,0.7649,2683.9,2683.5,3.72639]
[1727563217882,0.7649,2683.9,2683.5,7.45278]
[1727563218082,0.7649,2683.9,2683.5,3.72639]
[1727563221384,4.4909,2683.9,2683.4,3.7266]
[1727563221722,4.49091,2683.9,2683.4,0.84312711]
[1727563221926,3.72607,2683.8,2683.3,7.4533]
[1727563222218,0.7649,2683.9,2683.4,3.72655]
[1727563222219,4.49086,2683.9,2683.4,3.72655]
[1727563222695,3.72614,2683.8,2683.2,3.7268]
[1727563222895,0.7934,2683.8,2683.0,0.77479878]
[1727563223096,4.52024,2683.3,2682.7,4.50230878]
[1727563223302,4.52024,2683.3,2682.8,3.09117618]
[1727563223303,0.7934,2683.3,2682.8,3.09117618]
[1727563223508,0.7934,2683.3,2682.8,0.56642918]
[1727563223716,0.7934,2683.3,2682.7,4.56021]
[1727563223717,3.72697,2683.2,2682.7,4.56021]
[1727563224022,3.72697,2683.2,2682.8,1.00993736]
[1727563224223,4.52023,2683.3,2682.7,8.2877]
[1727563224385,4.52023,2683.3,2682.8,3.0]
[1727563224896,4.52023,2683.3,2682.8,6.72742]
[1727563225222,3.72696,2683.2,2682.8,3.0]
[1727563225641,4.52023,2683.3,2682.8,3.0]
[1727563227225,4.52023,2683.3,2682.6,3.0]
[1727563227226,3.72704,2683.1,2682.6,3.0]
[1727563227387,0.7934,2683.0,2682.6,3.0]
[1727563228007,0.7934,2683.0,2682.6,6.7277]
[1727563229088,0.7934,2683.0,2682.6,3.0]
[1727563231617,4.52066,2683.0,2682.4,3.0]
[1727563231987,3.72732,2682.9,2682.5,0.06920764]
[1727563234117,3.72745,2682.8,2682.5,0.06920764]
[1727563234311,3.72766,2682.7,2682.5,0.06920764]
[1727563234490,0.7934,2682.6,2682.5,0.06920764]
[1727563234688,0.7934,2682.6,2682.2,3.0]
[1727563234926,0.7934,2682.6,2682.5,0.07064017]
[1727563235418,0.7934,2682.6,2682.2,6.72826]
[1727563235625,0.7934,2682.6,2682.5,0.07064017]
[1727563235796,0.7934,2682.6,2682.2,6.72826]
[1727563235992,0.7934,2682.6,2682.5,0.07064017]
[1727563236200,0.7934,2682.6,2682.2,6.72826]
[1727563236399,0.7934,2682.6,2682.5,0.07064017]
[1727563236622,0.7934,2682.6,2682.2,6.72826]
[1727563236824,0.7934,2682.6,2682.5,0.07064017]
[1727563237131,4.52119,2682.6,2682.1,6.7284]
[1727563237430,4.52119,2682.6,2682.1,3.7284]
[1727563237628,4.52119,2682.6,2682.2,0.07088564]
[1727563238354,4.52119,2682.6,2682.2,3.79914564]
[1727563240145,4.52119,2682.6,2682.2,0.07088564]
[1727563240943,4.52119,2682.6,2682.0,3.72842]
[1727563241153,4.52119,2682.6,2682.1,0.07088564]
[1727563241532,4.52119,2682.6,2682.1,3.79928564]
[1727563242545,3.72789,2682.5,2682.1,0.07088564]
[1727563244561,3.72789,2682.5,2682.1,3.79929564]
[1727563246429,3.72789,2682.5,2682.1,0.07088564]
[1727563246630,3.72789,2682.5,2682.1,0.99956915]
[1727563250461,3.72789,2682.5,2682.1,0.07088564]
[1727563254959,3.72801,2682.4,2682.1,0.07088564]
[1727563255265,3.72815,2682.3,2682.1,0.07088564]
[1727563255677,3.72815,2682.3,2681.8,7.56145]
[1727563255860,3.72815,2682.3,2682.2,0.07147167]
[1727563256061,3.72815,2682.3,2681.8,7.56145]
[1727563256280,3.72815,2682.3,2682.2,0.07147167]
[1727563256489,4.63014916,2682.3,2681.8,7.56145]
[1727563256686,4.55905,2682.3,2682.2,0.07147167]
[1727563256862,4.55905,2682.3,2681.8,7.56145]
[1727563257057,4.55905,2682.3,2682.2,0.07147167]
[1727563257286,4.55905,2682.3,2681.8,7.56145]
[1727563257497,4.55905,2682.3,2682.2,0.07147167]
[1727563257664,4.55905,2682.3,2681.8,7.56145]
[1727563257867,4.55905,2682.3,2682.2,0.07147167]
[1727563258089,4.55905,2682.3,2681.9,3.72867]
[1727563258310,4.55905,2682.3,2682.2,0.07147167]
[1727563258901,4.55905,2682.3,2681.9,3.72867]
[1727563259510,4.55905,2682.3,2682.0,0.07135271]
[1727563260580,4.55905,2682.3,2681.8,7.56145]
[1727563260817,4.55905,2682.3,2682.1,0.07152698]
[1727563261016,4.55905,2682.3,2681.8,7.56145]
[1727563261332,4.55905,2682.3,2682.2,0.07152698]
[1727563261516,4.55905,2682.3,2681.8,11.29019]
[1727563261700,4.55905,2682.3,2682.2,0.07152698]
[1727563261900,4.55905,2682.3,2681.8,7.56144]
[1727563262201,4.55905,2682.3,2681.8,11.29019]
[1727563262407,4.55905,2682.3,2681.9,0.07152698]
[1727563268324,4.55905,2682.3,2681.9,0.83482368]
[1727563270642,4.55905,2682.3,2681.9,0.07152698]
[1727563270837,3.72831,2682.2,2681.9,0.07152698]
[1727563271041,4.55905,2682.3,2681.9,0.07152698]
[1727563276639,4.55905,2682.3,2681.9,3.80021698]
[1727563276843,4.55905,2682.3,2681.9,0.07152698]
[1727563277053,4.55905,2682.3,2681.9,0.82903356]
[1727563277372,4.55905,2682.3,2682.0,1.01199455]
[1727563277523,4.55905,2682.3,2681.9,0.82903356]
[1727563277723,4.55905,2682.3,2682.1,0.07147154]
[1727563277924,4.55905,2682.3,2681.9,0.75750658]
[1727563278128,4.55905,2682.3,2682.2,0.07147154]
[1727563278348,4.55905,2682.3,2681.9,0.75750658]
[1727563278562,4.55905,2682.3,2682.2,0.07147154]
[1727563278763,4.55905,2682.3,2681.9,0.75750658]
[1727563278764,3.72815,2682.3,2681.9,0.8248]
[1727563278963,3.72815,2682.3,2682.2,0.07147154]
[1727563279150,7.45642,2682.3,2681.9,0.8248]
[1727563279352,3.72815,2682.3,2682.2,0.07147154]
[1727563279552,3.72815,2682.3,2681.9,0.8248]
[1727563279760,3.72815,2682.3,2682.2,0.07147154]
[1727563280227,3.72815,2682.3,2681.9,0.8248]
[1727563280431,3.72815,2682.3,2682.2,0.07147154]
[1727563280659,3.72815,2682.3,2681.9,0.8248]
[1727563280866,3.72815,2682.3,2682.2,0.07144778]
[1727563281066,3.72815,2682.3,2681.9,0.8248]
[1727563281267,3.72815,2682.3,2682.2,0.07144778]
[1727563281443,3.72815,2682.3,2681.9,1.59959878]
[1727563281650,3.72815,2682.3,2682.2,0.07144778]
[1727563281844,3.72815,2682.3,2681.9,1.59959878]
[1727563282043,3.72815,2682.3,2682.2,0.07144778]
[1727563282270,3.72815,2682.3,2681.9,1.59959878]
[1727563282445,3.72815,2682.3,2682.2,0.07144778]
[1727563282647,3.72815,2682.3,2681.9,1.59959878]
[1727563282873,3.72815,2682.3,2682.2,0.07144778]
[1727563283030,3.72815,2682.3,2681.9,1.59959878]
[1727563283234,3.72815,2682.3,2682.2,0.07144778]
[1727563283436,3.72815,2682.3,2681.9,1.59959878]
[1727563283736,3.72815,2682.3,2682.2,0.07144778]
[1727563283935,3.72815,2682.3,2681.9,1.59959878]
[1727563284137,3.72815,2682.3,2682.2,0.07144778]
[1727563284368,3.72815,2682.3,2681.9,1.59959878]
[1727563284590,3.72815,2682.3,2682.2,0.07144778]
[1727563284734,3.72815,2682.3,2681.9,1.59959878]
[1727563284943,3.72815,2682.3,2682.0,2.6032492]
[1727563285138,3.72815,2682.3,2682.1,1.01272057]
[1727563285377,3.72815,2682.3,2682.0,0.07144778]
[1727563285539,3.72815,2682.3,2682.1,1.01275115]
[1727563285879,3.72815,2682.3,2682.1,0.07144778]
[1727563286060,3.72815,2682.3,2681.9,1.59959878]
[1727563286266,3.72815,2682.3,2682.2,0.07144778]
[1727563286560,3.72815,2682.3,2681.9,1.59959878]
[1727563286755,3.72815,2682.3,2682.2,0.07144778]
[1727563287390,3.72815,2682.3,2681.9,1.59959878]
[1727563287688,3.72815,2682.3,2682.0,2.53214113]
[1727563287842,3.72815,2682.3,2682.1,1.01285645]
[1727563288045,3.72815,2682.3,2681.9,1.59959878]
[1727563288264,3.72815,2682.3,2682.0,2.53210523]
[1727563288471,3.72815,2682.3,2682.1,1.01284209]
[1727563288690,3.72815,2682.3,2681.9,3.07761468]
[1727563288845,3.72815,2682.3,2682.2,0.07144778]
[1727563289045,3.72815,2682.3,2681.9,1.59959878]
[1727563289260,3.72815,2682.3,2682.2,0.07144778]
[1727563289457,3.72815,2682.3,2681.9,3.07761468]
[1727563289458,3.72815,2682.3,2681.9,1.59959878]
[1727563289747,3.72815,2682.3,2682.0,2.53228511]
[1727563290047,3.72815,2682.3,2682.1,1.01291404]
[1727563290249,3.72815,2682.3,2681.9,1.59959878]
[1727563290447,3.72796,2682.5,2682.2,0.07144778]
[1727563290649,3.728,2682.4,2681.9,5.32827878]
[1727563290936,3.728,2682.4,2682.3,0.07143191]
[1727563291107,3.728,2682.4,2681.9,5.32827878]
[1727563291313,3.728,2682.4,2682.3,0.07143191]
[1727563292241,3.72796,2682.5,2681.9,1.59959878]
[1727563292550,3.72815,2682.3,2682.0,2.5319412]
[1727563292727,3.72815,2682.3,2682.1,1.01277648]
[1727563292927,3.72815,2682.3,2682.0,0.07143191]
[1727563293121,3.72815,2682.3,2682.1,1.01276475]
[1727563293298,3.72815,2682.3,2682.1,0.07143191]
[1727563293502,3.72815,2682.3,2681.9,3.07761268]
[1727563293699,3.72815,2682.3,2682.2,0.07143191]
[1727563293906,3.72815,2682.3,2681.9,1.59959878]
[1727563294107,3.72815,2682.3,2682.2,0.07143191]
[1727563294341,3.72815,2682.3,2681.9,3.22541507]
[1727563294637,3.72815,2682.3,2682.0,2.53210188]
[1727563294855,7.45596,2682.5,2682.1,2.53211643]
[1727563295149,3.72779,2682.6,2682.3,0.7735]
[1727563295328,3.72779,2682.6,2682.4,1.01252667]
[1727563295646,3.7277,2682.7,2682.3,0.7735]
[1727563295818,3.7277,2682.7,2682.5,0.07135269]
[1727563296147,3.7277,2682.7,2682.3,0.7735]
[1727563296350,3.7277,2682.7,2682.6,0.07135269]
[1727563296507,3.7277,2682.7,2682.3,0.7735]
[1727563296707,3.7277,2682.7,2682.4,1.01244089]
[1727563296952,3.7277,2682.7,2682.4,0.07135269]
[1727563308758,3.72767,2682.7,2682.4,0.07135269]
[1727563309745,3.72773,2682.6,2682.4,0.07135269]
[1727563310126,3.72773,2682.6,2682.2,0.77479878]
[1727563310326,3.72773,2682.6,2682.5,0.0709646]
[1727563310540,3.72773,2682.6,2682.2,0.77479878]
[1727563310756,3.72773,2682.6,2682.5,0.0709646]
[1727563311031,3.72773,2682.6,2682.2,0.77479878]
[1727563311230,4.54623,2682.6,2682.5,0.0709646]
[1727563311445,5.37362,2682.6,2682.2,0.77479878]
[1727563311654,4.54623,2682.6,2682.5,0.0709646]
[1727563311823,3.72789,2682.5,2682.2,0.77479878]
[1727563312034,3.72814,2682.3,2682.2,0.77479878]
[1727563312231,4.54664,2682.3,2682.2,0.77479878]
[1727563313742,6.11054159,2682.3,2682.2,0.77479878]
[1727563314545,0.8185,2682.0,2681.6,0.77479878]
[1727563314841,0.8185,2682.0,2681.7,2.52306516]
[1727563315057,0.8185,2682.0,2681.6,0.77479878]
[1727563315366,0.8185,2682.0,2681.7,1.00922317]
[1727563315667,0.8185,2682.0,2681.5,4.50401878]
[1727563315829,0.8185,2682.0,2681.6,2.50612393]
[1727563316029,0.8185,2682.0,2681.7,1.00244957]
[1727563316231,0.8185,2682.0,2681.6,3.7291]
[1727563316471,0.8185,2682.0,2681.7,1.07384222]
[1727563316666,0.8185,2682.0,2681.7,0.07151119]
[1727563318067,4.54708,2682.0,2681.7,0.07151119]
[1727563318278,8.27572,2682.0,2681.5,3.72923]
[1727563318568,4.54708,2682.0,2681.6,1.07373223]
[1727563318770,4.54708,2682.0,2681.6,0.07154288]
[1727563321769,4.53796,2682.2,2681.7,3.72889]
[1727563321948,4.53796,2682.2,2681.7,7.45777]
[1727563322156,0.8096,2682.2,2681.8,4.58180627]
[1727563322487,0.8096,2682.2,2681.9,0.83852599]
[1727563322657,0.8096,2682.2,2682.0,0.07159043]
[1727563323179,0.8096,2682.2,2681.8,4.5102]
[1727563323477,0.8096,2682.2,2681.8,0.7814]
[1727563323790,0.8096,2682.2,2681.9,0.07159043]
[1727563324682,3.72808,2682.4,2681.9,4.26585367]
[1727563324683,4.53762,2682.4,2681.9,4.26585367]
[1727563324891,8.26574,2682.4,2681.9,3.80021043]
[1727563325053,4.53762,2682.4,2681.9,3.80021043]
[1727563325247,8.26574,2682.4,2681.9,3.80021043]
[1727563325448,4.53762,2682.4,2681.9,3.80021043]
[1727563326594,3.72819,2682.3,2681.9,0.07159043]
[1727563328757,0.8096,2682.4,2681.9,0.07159043]
[1727563328963,4.53816,2682.0,2681.9,0.07159043]
[1727563329489,3.72877,2681.9,2681.5,0.7814]
[1727563329706,3.72887,2681.8,2681.4,3.0]
[1727563329992,3.72887,2681.8,2681.4,1.23956818]
[1727563330198,4.53871,2681.6,2681.2,0.77479878]
[1727563330496,3.72935,2681.5,2681.3,1.00166726]
[1727563330691,3.72935,2681.5,2681.1,0.7814]
[1727563330847,3.72935,2681.5,2681.2,1.00180462]
[1727563331053,3.72947,2681.4,2681.2,0.0695878]
[1727563331251,3.72947,2681.4,2680.9,3.73007]
[1727563331460,5.29325159,2681.5,2680.9,7.46005]